fUSD/lending_fUSD_20250720
["ID","MTS","AMOUNT","RATE_DAILY","PERIOD"]
[373423448,1752998001086,2000.0,0.00028647,120]
[373423449,1752998001400,1163.97035821,0.00027397,120]
[373423450,1752998001617,2000.0,0.0002977,120]
[373423451,1752998004092,600.0,0.00027397,120]
[373423452,1752998004734,600.0,0.00027397,120]
[373423453,1752998004845,600.0,0.00027397,120]
[373423454,1752998004968,600.0,0.00027397,120]
[373423455,1752998005084,600.0,0.00027397,120]
[373423456,1752998005329,600.0,0.00027397,120]
[373423457,1752998005651,600.0,0.00027397,120]
[373423458,1752998005870,600.0,0.00027397,120]
[373423459,1752998006116,600.0,0.00027397,120]
[373423460,1752998006347,600.0,0.00027397,120]
[373423461,1752998006591,600.0,0.00027397,120]
[373423462,1752998006911,600.0,0.00027397,120]
[373423463,1752998007053,500.0,0.00025279,120]
[373423464,1752998007139,600.0,0.00027397,120]
[373423465,1752998007379,500.0,0.00026402,120]
[373423466,1752998007742,600.0,0.00027397,120]
[373423467,1752998007818,500.0,0.00027525,120]
[373423468,1752998007994,600.0,0.00027397,120]
[373423469,1752998008223,600.0,0.00027397,120]
[373423470,1752998008467,600.0,0.00027397,120]
[373423471,1752998008704,600.0,0.00027397,120]
[373423472,1752998008884,500.0,0.00028647,120]
[373423473,1752998008982,600.0,0.00027397,120]
[373423474,1752998009166,600.0,0.00027397,120]
[373423475,1752998009338,500.0,0.0002977,120]
[373423476,1752998009474,273.73133841,0.00027397,120]
[373423477,1752998018026,500.0,0.00025279,120]
[373423478,1752998018383,500.0,0.00026558,120]
[373423479,1752998018736,500.0,0.00027836,120]
[373423480,1752998019085,500.0,0.00029114,120]
[373423481,1752998019539,500.0,0.00030136,120]
[373423482,1752998033397,1000.0,0.00030137,120]
[373423484,1752998071712,5000.0,0.00029863,120]
[373423485,1752998092426,10000.0,0.00029863,120]
[373423486,1752998107713,10000.0,0.00029863,120]
[373423487,1752998138787,9570.0,0.00030136,120]
[373423488,1752998166806,239.69,0.00013699,2]
[373423489,1752998171761,500.0,0.00028767,120]
[373423490,1752998171865,500.0,0.00028767,120]
[373423491,1752998172095,500.0,0.00028767,120]
[373423493,1752998172843,500.0,0.00028767,120]
[373423494,1752998172962,500.0,0.00028767,120]
[373423495,1752998173196,500.0,0.00028767,120]
[373423496,1752998173305,500.0,0.00028767,120]
[373423497,1752998173542,500.0,0.00028767,120]
[373423498,1752998173779,422.86611366,0.00028767,120]
[373423499,1752998188157,1541.0,0.0002609,120]
[373423500,1752998188713,1541.0,0.0002608,120]
[373423501,1752998189025,1541.0,0.0002607,120]
[373423502,1752998189468,1541.0,0.0002609,120]
[373423503,1752998189922,1541.0,0.0002608,120]
[373423504,1752998190355,1541.0,0.0002607,120]
[373423505,1752998190870,1541.0,0.0002609,120]
[373423506,1752998191401,1541.0,0.0002608,120]
[373423507,1752998191860,1541.0,0.0002609,120]
[373423508,1752998192310,1547.11,0.0002608,120]
[373423509,1752998205081,160.0,0.000301,120]
[373423510,1752998205195,200.0,0.00021918,120]
[373423511,1752998205546,200.0,0.00024658,120]
[373423512,1752998208404,160.0,0.000301,120]
[373423513,1752998208623,398.31202552,0.00027397,120]
[373423514,1752998209102,160.0,0.000301,120]
[373423515,1752998209595,160.0,0.000301,120]
[373423516,1752998209952,160.0,0.000301,120]
[373423517,1752998221629,160.0,0.000301,120]
[373423518,1752998222082,160.0,0.000301,120]
[373423519,1752998222510,160.0,0.000301,120]
[373423520,1752998254218,160.0,0.000301,120]
[373423521,1752998264772,160.0,0.000301,120]
[373423522,1752998264992,158.96,0.0003013,120]
[373423523,1752998265464,160.0,0.000301,120]
[373423524,1752998265721,160.0,0.000301,120]
[373423525,1752998266133,160.0,0.000301,120]
[373423526,1752998266552,160.0,0.000301,120]
[373423527,1752998272687,160.0,0.000301,120]
[373423528,1752998273045,160.0,0.000301,120]
[373423529,1752998273486,160.0,0.000301,120]
[373423531,1752998283971,165.0,0.000301,120]
[373423532,1752998284957,165.0,0.000301,120]
[373423533,1752998285968,165.0,0.000301,120]
[373423534,1752998299223,165.0,0.000301,120]
[373423535,1752998299662,165.0,0.000301,120]
[373423536,1752998303672,165.0,0.000301,120]
[373423537,1752998316561,183.11,0.000301,120]
[373423538,1752998317738,150.0,0.00030136,120]
[373423539,1752998406743,2000.0,0.0003,120]
[373423540,1752998430119,2000.0,0.0003013,120]
[373423541,1752998458635,511.0,0.00015627,2]
[373423542,1752998468356,264.09345727,0.00015627,2]
[373423543,1752998468663,345.04995816,0.00015627,2]
[373423544,1752998481035,2954.61848588,0.0003013,120]
[373423545,1752998548821,-250.0,0.00016561,2]
[373423546,1752998548850,-1000.0,0.00016583,2]
[373423547,1752998548877,-1000.0,0.00016639,2]
[373423548,1752998548911,-1380.54,0.00016648,2]
[373423549,1752998549205,-1200.0,0.00016649,2]
[373423550,1752998549233,-300.0,0.00016649,2]
[373423551,1752998549260,-1157.46,0.0001665,2]
[373423552,1752998591936,500.0,0.00025279,120]
[373423553,1752998592365,500.0,0.00026955,120]
[373423554,1752998592657,500.0,0.0002863,120]
[373423555,1752998593004,500.0,0.00030136,120]
[373423556,1752998595865,2000.0,0.00025279,120]
[373423557,1752998596213,2000.0,0.00026558,120]
[373423558,1752998596558,2000.0,0.00027836,120]
[373423559,1752998596919,2000.0,0.00029114,120]
[373423560,1752998597266,2000.0,0.00030136,120]
[373423561,1752998600934,500.0,0.00025279,120]
[373423562,1752998601333,500.0,0.00026713,120]
[373423563,1752998601721,500.0,0.00028147,120]
[373423564,1752998602085,500.0,0.00029581,120]
[373423565,1752998607491,500.0,0.00025279,120]
[373423566,1752998610150,500.0,0.00026685,120]
[373423567,1752998611609,500.0,0.0002809,120]
[373423568,1752998611974,500.0,0.00029496,120]
[373423569,1752998681678,2000.0,0.00016466,120]
[373423570,1752998697304,1209.52,0.00027397,120]
[373423571,1752998697533,1209.52,0.00027397,120]
[373423572,1752998697759,1209.52,0.00027397,120]
[373423573,1752998698012,1209.52,0.00027397,120]
[373423574,1752998698243,1209.52,0.00027397,120]
[373423575,1752998698471,1209.52,0.00027397,120]
[373423576,1752998698700,1209.52,0.00027397,120]
[373423577,1752998698926,1209.52,0.00027397,120]
[373423578,1752998699178,1209.52,0.00027397,120]
[373423579,1752998699476,1209.52,0.00027397,120]
[373423580,1752998699713,1209.52,0.00027397,120]
[373423581,1752998699970,1209.52,0.00027397,120]
[373423582,1752998700236,1209.52,0.00027397,120]
[373423583,1752998700832,1209.52,0.00027397,120]
[373423584,1752998701097,1209.52,0.00027397,120]
[373423585,1752998702114,1209.52,0.00027397,120]
[373423586,1752998702286,1209.52,0.00027397,120]
[373423587,1752998702495,1209.52,0.00027397,120]
[373423588,1752998702633,1209.52,0.00027397,120]
[373423589,1752998702786,1209.52,0.00027397,120]
[373423590,1752998702888,1209.52,0.00027397,120]
[373423591,1752998703318,1209.52,0.00027397,120]
[373423592,1752998704400,1209.52,0.00027397,120]
[373423593,1752998704603,1209.70038247,0.00027397,120]
[373423595,1752998804071,1729.0,0.0003013,120]
[373423596,1752998804863,1212.0,0.0003013,120]
[373423597,1752998805656,1355.0,0.0003013,120]
[373423599,1752998830836,338.0,0.0003013,120]
[373423600,1752998831620,852.0,0.0003013,120]
[373423601,1752998832424,1740.0,0.0003013,120]
[373423602,1752998844302,275.0,0.0003013,120]
[373423603,1752998863373,423.0,0.0003013,120]
[373423610,1752998879451,-150.0,0.00016003,2]
[373423611,1752998879479,-372.12,0.00016392,2]
[373423612,1752998879505,-705.81,0.00016413,2]
[373423613,1752998879532,-1200.0,0.00016454,2]
[373423614,1752998879560,-300.0,0.00016454,2]
[373423615,1752998879595,-16824.49,0.00016455,2]
[373423616,1752998879620,-1032.91377997,0.00016461,2]
[373423617,1752998879645,-666.0,0.00016466,2]
[373423618,1752998879677,-4730.07119828,0.0001665,2]
[373423619,1752998879703,-151.0,0.0001665,2]
[373423620,1752998879728,-362.30245607,0.0001665,2]
[373423621,1752998879754,-1000.0,0.00016657,2]
[373423622,1752998879779,-231.28369723,0.00016664,2]
[373423623,1752998879805,-7142.856,0.00016664,2]
[373423624,1752998879830,-1000.0,0.0001667,2]
[373423625,1752998879856,-181.8,0.00016674,2]
[373423626,1752998879882,-159.05,0.00016687,2]
[373423627,1752998879908,-449.3,0.00016738,2]
[373423628,1752998879940,-435.00294589,0.000169,2]
[373423629,1752998879969,-244.0,0.00016932,3]
[373423630,1752998880002,-435.00294585,0.00016934,2]
[373423631,1752998880035,-226.99697671,0.00016969,2]
[373423632,1752998984317,2751.75,0.00030137,120]
[373423633,1752998987919,1511.0185695,0.00030137,120]
[373423637,1752999029672,509.01887277,0.00030136,120]
[373423648,1752999032512,-265.77342586,0.00016432,2]
[373423649,1752999032522,-165.41,0.00016433,2]
[373423650,1752999032531,-1000.0,0.00016532,2]
[373423651,1752999032541,-326.93856414,0.00016563,2]
[373423652,1752999032649,-390.10660491,0.00016563,2]
[373423653,1752999032660,-282.95483095,0.00016563,2]
[373423654,1752999032670,-289.84196486,0.00016969,2]
[373423655,1752999032679,-297.0,0.00016995,2]
[373423656,1752999032689,-432.0,0.00017014,2]
[373423657,1752999032698,-1200.0,0.00017014,2]
[373423658,1752999032707,-250.0,0.00017053,2]
[373423659,1752999032717,-1366.0,0.00017169,2]
[373423660,1752999032726,-263.35788137,0.00017176,2]
[373423661,1752999032735,-1000.0,0.00017201,2]
[373423662,1752999032745,-1000.0,0.00017201,2]
[373423663,1752999032754,-600.0,0.00017201,2]
[373423664,1752999032764,-1000.0,0.00017201,2]
[373423665,1752999032774,-500.90882995,0.00017201,2]
[373423666,1752999032784,-151.0,0.00017201,2]
[373423667,1752999032794,-151.0,0.00017201,2]
[373423668,1752999032803,-300.0,0.00017201,2]
[373423669,1752999032813,-151.0,0.00017201,2]
[373423670,1752999032822,-300.0,0.00017201,2]
[373423671,1752999032831,-151.0,0.00017201,2]
[373423672,1752999032840,-300.0,0.00017201,2]
[373423673,1752999032850,-151.0,0.00017201,2]
[373423674,1752999032860,-300.0,0.00017201,2]
[373423675,1752999032869,-151.0,0.00017201,2]
[373423677,1752999032878,-300.0,0.00017201,2]
[373423679,1752999032887,-151.0,0.00017201,2]
[373423681,1752999032896,-300.0,0.00017201,2]
[373423683,1752999032905,-216.55516142,0.00017201,2]
[373423685,1752999032915,-500.0,0.00017201,2]
[373423687,1752999032924,-300.0,0.00017201,2]
[373423689,1752999032933,-574.10976152,0.00017201,2]
[373423691,1752999032942,-300.0,0.00017201,2]
[373423693,1752999032952,-300.0,0.00017201,2]
[373423695,1752999032961,-300.0,0.00017201,2]
[373423696,1752999032970,-7407.141672,0.00017212,2]
[373423698,1752999032978,-781.0,0.00017253,2]
[373423699,1752999032987,-696.0,0.00017337,2]
[373423700,1752999032997,-1000.0,0.000174,2]
[373423701,1752999033006,-1000.0,0.000174,2]
[373423702,1752999033016,-827.0,0.00017407,2]
[373423703,1752999033025,-1466.0,0.00017421,2]
[373423704,1752999033035,-464.7207,0.00017426,2]
[373423705,1752999033044,-3541.44,0.00017482,2]
[373423706,1752999033054,-1950.0,0.00017493,2]
[373423707,1752999033063,-465.03,0.000175,2]
[373423708,1752999033072,-1000.0,0.000175,2]
[373423709,1752999033083,-1000.0,0.000175,2]
[373423710,1752999033091,-1000.0,0.000175,2]
[373423711,1752999033100,-1000.0,0.000175,2]
[373423712,1752999033109,-1000.0,0.000175,2]
[373423713,1752999033119,-1098.0,0.000175,2]
[373423714,1752999033129,-1000.0,0.000175,2]
[373423715,1752999033139,-1000.0,0.000175,2]
[373423716,1752999033148,-1000.0,0.000175,2]
[373423717,1752999033156,-1000.0,0.000175,2]
[373423718,1752999033166,-465.0,0.000175,2]
[373423719,1752999033176,-975.49232686,0.00017505,2]
[373423720,1752999033191,-500.50767314,0.00017505,2]
[373423721,1752999033201,-500.0,0.00017507,2]
[373423722,1752999033210,-181.8,0.00017507,2]
[373423723,1752999033220,-167.1801,0.0001751,2]
[373423724,1752999033231,-500.0,0.00017517,2]
[373423725,1752999033240,-174.58825564,0.00017529,2]
[373423726,1752999033250,-6034.86408239,0.00017533,2]
[373423727,1752999033261,-413.0,0.00017578,2]
[373423728,1752999033270,-1635.6584,0.00017582,2]
[373423729,1752999033279,-783.4026751,0.00017582,2]
[373423730,1752999033290,-216.5973249,0.00017582,2]
[373423731,1752999033299,-399.0,0.00017589,2]
[373423732,1752999033308,-1605.44,0.000176,2]
[373423733,1752999033318,-1600.41817,0.000176,2]
[373423734,1752999033328,-1000.0,0.000176,2]
[373423735,1752999033339,-1000.0,0.00017603,2]
[373423736,1752999033349,-250.0,0.00017603,2]
[373423737,1752999033359,-1000.0,0.00017603,2]
[373423738,1752999033369,-3352.50801146,0.0001761,2]
[373423739,1752999033378,-500.0,0.00017639,2]
[373423740,1752999033388,-2000.0,0.0001764,2]
[373423741,1752999033398,-500.0,0.0001764,2]
[373423742,1752999033408,-500.0,0.0001764,2]
[373423743,1752999033417,-1692.0,0.00017663,2]
[373423744,1752999033425,-1180.47,0.0001767,2]
[373423745,1752999033433,-326.0,0.00017674,2]
[373423746,1752999033443,-3767.6796558,0.00017681,2]
[373423747,1752999033452,-565.69539557,0.00017681,2]
[373423748,1752999033461,-2175.3857,0.00017681,2]
[373423749,1752999033471,-3767.6796558,0.00017681,2]
[373423750,1752999033481,-3767.6796558,0.00017681,2]
[373423751,1752999033490,-3767.6796558,0.00017681,2]
[373423752,1752999033500,-495.76677487,0.00017681,2]
[373423753,1752999033512,-3271.91288093,0.00017681,2]
[373423754,1752999033522,-81.62448911,0.00017682,2]
[373423755,1752999033534,-3686.05516669,0.00017682,2]
[373423756,1752999033543,-1000.0,0.00017682,2]
[373423757,1752999033551,-2500.0,0.00017682,2]
[373423758,1752999033561,-3767.6796558,0.00017682,2]
[373423759,1752999033570,-3767.6796558,0.00017682,2]
[373423760,1752999033579,-1758.33579715,0.00017682,2]
[373423761,1752999033591,-339.01560431,0.00017682,2]
[373423762,1752999033627,-280.80301552,0.00017682,2]
[373423766,1752999038314,-337.95501913,0.00017218,2]
[373423780,1752999038967,-262.04498087,0.00017218,2]
[373423782,1752999038983,-55.9362966,0.00017681,2]
[373423794,1752999039209,-175.93727529,0.00017681,2]
[373423795,1752999039219,-123.16600622,0.00017682,2]
[373423798,1752999039275,-402.04444686,0.00017682,2]
[373423799,1752999039286,-864.31478574,0.00017682,2]
[373423800,1752999039295,-2192.60237252,0.00017682,2]
[373423801,1752999039396,-1083.60965143,0.00017682,2]
[373423802,1752999039407,-450.22930461,0.00017682,2]
[373424034,1752999041643,-2420.936511,0.00017412,2]
[373424037,1752999041658,-2579.063489,0.00017682,2]
[373424040,1752999041673,-1640.36281023,0.00017682,2]
[373424240,1752999043752,-0.12348087,0.00017682,2]
[373424312,1752999044572,-2054.00889134,0.00017682,2]
[373424314,1752999044582,-5000.0,0.00017682,2]
[373424316,1752999044591,-155.76146031,0.00017682,2]
[373424318,1752999044601,-3767.6796558,0.00017682,2]
[373424320,1752999044611,-2322.61984449,0.00017682,2]
[373424322,1752999044620,-189.53689202,0.00017682,2]
[373424324,1752999044630,-201.63081828,0.00017682,2]
[373424326,1752999044639,-5601.84593605,0.00017682,2]
[373424328,1752999044648,-380.5864613,0.00017682,2]
[373424329,1752999044657,-275.51607778,0.00017682,2]
[373424331,1752999044667,-185.49885751,0.00017682,2]
[373424333,1752999044676,-2000.0,0.000177,2]
[373424335,1752999044686,-1000.0,0.000177,2]
[373424337,1752999044699,-1600.41818,0.0001772,2]
[373424339,1752999044709,-1197.0,0.00017749,2]
[373424340,1752999044718,-600.0,0.00017749,2]
[373424342,1752999044727,-1722.0,0.00017758,2]
[373424343,1752999044737,-7681.20591386,0.0001776,2]
[373424344,1752999044747,-500.0,0.00017773,2]
[373424345,1752999044756,-161.31378702,0.00017773,2]
[373424346,1752999044766,-500.0,0.00017773,2]
[373424347,1752999044775,-500.0,0.00017773,2]
[373424348,1752999044785,-500.0,0.00017781,2]
[373424349,1752999044794,-186.59264812,0.00017781,2]
[373424350,1752999044804,-390.08176856,0.00017781,2]
[373424351,1752999044813,-300.0,0.00017781,2]
[373424352,1752999044822,-343686.58675844,0.00017782,2]
[373424353,1752999044847,-2423.77845542,0.00017782,2]
[373424354,1752999044858,-12603.626,0.00017782,2]
[373424356,1752999044874,-3236.19750904,0.00017782,2]
[373424358,1752999044886,-2996.03610063,0.00017782,2]
[373424381,1752999045239,1427.0,0.0003013,120]
[373424519,1752999046596,-1477.0,0.00017719,2]
[373424521,1752999046606,-1969.27496903,0.00017782,2]
[373424524,1752999046617,-2828.3,0.00017782,2]
[373424526,1752999046628,-1184.0,0.00017782,2]
[373424577,1752999047118,500.0,0.00015903,2]
[373425367,1752999058595,491.72,0.000229,31]
[373425368,1752999058661,491.72,0.000229,31]
[373425369,1752999058757,491.72,0.000229,31]
[373425370,1752999058961,491.72,0.000229,31]
[373425371,1752999059053,491.72,0.000229,31]
[373425372,1752999059123,491.72,0.000229,31]
[373425373,1752999059190,491.72,0.000229,31]
[373425374,1752999059271,491.72,0.000229,31]
[373425375,1752999059340,491.72,0.000229,31]
[373425376,1752999059562,491.72,0.000229,31]
[373425377,1752999059623,491.72,0.000229,31]
[373425378,1752999059682,491.72,0.000229,31]
[373425379,1752999059742,491.72,0.000229,31]
[373425380,1752999059806,491.72,0.000229,31]
[373425381,1752999059883,491.72,0.000229,31]
[373425382,1752999059963,491.72,0.000229,31]
[373425383,1752999096139,791.0,0.0003013,120]
[373425385,1752999146586,244.26,0.00013699,2]
[373425386,1752999156733,1968.17339945,0.0003013,120]
[373425387,1752999169756,150.0,0.00030136,120]
[373425388,1752999194380,340.169861,0.00026823,120]
[373425389,1752999201502,2000.0,0.00026823,120]
[373425390,1752999202083,2000.0,0.00028423,120]
[373425391,1752999202530,2000.0,0.00030023,120]
[373425392,1752999205087,500.0,0.00026823,120]
[373425393,1752999205425,500.0,0.00028423,120]
[373425394,1752999205712,161.822905,0.00030023,120]
[373425395,1752999210052,500.0,0.00026823,120]
[373425396,1752999210398,500.0,0.00028256,120]
[373425397,1752999211426,500.0,0.0002969,120]
[373425398,1752999387943,254.0,0.0002609,120]
[373425399,1752999388448,254.0,0.0002608,120]
[373425400,1752999388985,254.0,0.0002607,120]
[373425401,1752999389458,254.0,0.0002609,120]
[373425402,1752999389931,254.0,0.0002608,120]
[373425403,1752999390492,254.0,0.0002607,120]
[373425404,1752999390955,254.0,0.0002609,120]
[373425405,1752999391988,254.0,0.0002608,120]
[373425406,1752999392186,254.0,0.0002609,120]
[373425407,1752999392385,256.45,0.0002608,120]
[373425408,1752999459717,315.15927901,0.000211,28]
[373425409,1752999507912,150.5,0.0002609,120]
[373425410,1752999508582,150.5,0.0002608,120]
[373425411,1752999508748,166.13,0.0002607,120]
[373425412,1752999670389,408.17,0.000229,31]
[373425413,1752999670460,408.17,0.000229,31]
[373425414,1752999670531,408.17,0.000229,31]
[373425415,1752999670614,408.17,0.000229,31]
[373425416,1752999670749,408.17,0.000229,31]
[373425417,1752999670818,408.17,0.000229,31]
[373425418,1752999670897,408.17,0.000229,31]
[373425419,1752999670971,408.17,0.000229,31]
[373425420,1752999671321,408.17,0.000229,31]
[373425421,1752999671383,408.17,0.000229,31]
[373425422,1752999671478,408.17,0.000229,31]
[373425423,1752999671553,408.17,0.000229,31]
[373425424,1752999671617,408.17,0.000229,31]
[373425425,1752999671680,408.17,0.000229,31]
[373425426,1752999671746,408.17,0.000229,31]
[373425427,1752999671810,408.17,0.000229,31]
[373425429,1752999756635,162.0,0.0003013,120]
[373425430,1752999757461,1366.0,0.0003013,120]
[373425431,1752999758266,1767.0,0.0003013,120]
[373425432,1752999772741,767.0,0.0003013,120]
[373425447,1752999793056,1241.029542,0.00026823,120]
[373425448,1752999796541,500.0,0.00026823,120]
[373425449,1752999796967,500.0,0.00028556,120]
[373425450,1752999798000,500.0,0.00030136,120]
[373425452,1752999816504,1632.0,0.0003013,120]
[373425464,1752999887620,844.43925693,0.00030137,120]
[373425465,1752999932257,566.66457813,0.0002,120]
[373425466,1752999952497,839.10501833,0.0003013,120]
[373425467,1752999955859,756.6962128,0.000295,120]
[373425468,1752999969302,173.94847375,0.0003,120]
[373425469,1752999971093,996.1,0.00030137,120]
[373425470,1752999973894,1800.0,0.0003013,120]
[373425471,1752999996814,189.0,0.0003013,120]
[373425472,1753000020249,758.99743002,0.0003013,120]
[373425475,1753000031899,553.0812734,0.0003,120]
[373425476,1753000056723,1253.0,0.0003013,120]
[373425477,1753000074810,-150.0,0.00016003,2]
[373425478,1753000074834,-293.5587737,0.00016003,2]
[373425479,1753000074856,-150.0,0.00016003,2]
[373425480,1753000074880,-352.9,0.00016141,2]
[373425481,1753000074903,-1000.0,0.00016143,2]
[373425482,1753000074925,-2000.0,0.00016165,2]
[373425483,1753000074947,-788.56,0.00016175,2]
[373425484,1753000074968,-766.61,0.00016192,2]
[373425485,1753000074992,-1200.0,0.00016207,2]
[373425486,1753000075015,-300.0,0.00016207,2]
[373425487,1753000083858,-12998.3712263,0.00016208,2]
[373425488,1753000093639,300.8291316,0.0003013,120]
[373425491,1753000100591,1485.45966052,0.00030137,120]
[373425492,1753000112669,18799.999997,0.0003,120]
[373425493,1753000113485,673.48594738,0.00025,120]
[373425494,1753000117103,627.76738038,0.000246,120]
[373425495,1753000117574,214.82263514,0.0003,120]
[373425496,1753000118797,2062.14585015,0.0003,120]
[373425497,1753000121644,511.0,0.0003013,120]
[373425498,1753000122151,1980.47084623,0.0003013,120]
[373425499,1753000123428,782.25717306,0.00024,120]
[373425500,1753000124825,800.0,0.00021,120]
[373425501,1753000125246,317.01864109,0.0003,120]
[373425502,1753000126451,165.92864809,0.00027397,120]
[373425503,1753000126599,602.92392801,0.0003,120]
[373425504,1753000127505,2308.0983091,0.00030136,120]
[373425505,1753000127563,2549.58098844,0.0002,120]
[373425506,1753000129052,302.29729387,0.0002465,120]
[373425507,1753000129161,568.19056184,0.0003,120]
[373425508,1753000129943,247.35923243,0.00027,120]
[373425509,1753000138613,6430.53,0.00030134,120]
[373425510,1753000144709,150.0,0.00030136,120]
[373425518,1753000177188,671.0,0.0003013,120]
[373425523,1753000186714,239.71,0.00013699,2]
[373425525,1753000231502,-300.0,0.00016207,2]
[373425526,1753000231512,-1200.0,0.00016207,2]
[373425527,1753000231521,-1983.48514,0.00016208,2]
[373425528,1753000231556,-1537.60205519,0.00016208,2]
[373425529,1753000231612,-1453.03426516,0.00016208,2]
[373425530,1753000231666,-868.86225705,0.00016208,2]
[373425534,1753000231962,-520.92424641,0.00016208,2]
[373425544,1753000232045,-300.0,0.00016208,2]
[373425545,1753000232057,-728.0,0.00016208,2]
[373425546,1753000232068,-3383.91357028,0.00016208,2]
[373425548,1753000232094,-125.80723961,0.00016208,2]
[373425550,1753000232104,-228.81610881,0.00016247,2]
[373425551,1753000232114,-135.36365161,0.00016347,2]
[373425553,1753000232125,-1166.93634839,0.00016347,2]
[373425554,1753000232135,-150.0,0.00016358,2]
[373425555,1753000232144,-1737.73,0.00016368,2]
[373425556,1753000232154,-169.59,0.00016392,2]
[373425557,1753000232163,-666.0,0.00016438,2]
[373425558,1753000232172,-511.0,0.00016558,2]
[373425559,1753000232182,-506.0,0.00016558,2]
[373425560,1753000232191,-228.81610879,0.00016608,2]
[373425561,1753000232200,-167.71,0.0001668,2]
[373425562,1753000232209,-966.0,0.00016685,2]
[373425563,1753000232219,-150.0,0.00016714,2]
[373425564,1753000232228,-153.59,0.00016714,2]
[373425565,1753000232237,-153.59,0.00016727,2]
[373425566,1753000232246,-5157.6689782,0.00016728,2]
[373425587,1753000237426,-1985.1870218,0.00016728,2]
[373425588,1753000237436,-600.0,0.00016728,2]
[373425589,1753000237445,-160.0,0.00016728,2]
[373425590,1753000237454,-231.28369723,0.00016728,2]
[373425591,1753000237463,-300.0,0.00016728,2]
[373425592,1753000237473,-300.0,0.00016728,2]
[373425593,1753000237482,-300.0,0.00016728,2]
[373425594,1753000237492,-300.0,0.00016728,2]
[373425595,1753000237501,-300.0,0.00016728,2]
[373425596,1753000237510,-300.0,0.00016728,2]
[373425597,1753000237519,-300.0,0.00016728,2]
[373425598,1753000237529,-300.0,0.00016728,2]
[373425599,1753000237538,-300.0,0.00016728,2]
[373425600,1753000237547,-300.0,0.00016728,2]
[373425601,1753000237556,-1833.71,0.00016738,2]
[373425602,1753000237565,-153.59,0.0001674,2]
[373425603,1753000237575,-153.59,0.00016753,2]
[373425604,1753000237584,-153.59,0.00016766,2]
[373425605,1753000237593,-1969.0,0.00016768,2]
[373425606,1753000237602,-153.59,0.00016778,2]
[373425607,1753000237612,-153.59,0.00016791,2]
[373425608,1753000237621,-153.59,0.00016804,2]
[373425609,1753000237631,-1154.48353339,0.00016808,2]
[373425610,1753000237640,-153.59,0.00016817,2]
[373425611,1753000237650,-250.0,0.00016818,2]
[373425612,1753000237659,-153.59,0.0001683,2]
[373425613,1753000237668,-424.96,0.00016831,2]
[373425614,1753000237681,-153.59,0.00016843,2]